bitfinex/quotes_SOLUSD_20241214
["timestamp","ask_amount","ask_price","bid_price","bid_amount"]
[1734145371542,6.5766,225.9,225.81,6.63865311]
[1734145378932,6.5766,225.9,225.83,6.63865311]
[1734145380532,6.1688,225.95,225.87,6.63865311]
[1734145381628,6.1688,225.95,225.88,6.63865311]
[1734145383437,6.1688,225.95,225.89,6.63865311]
[1734145384026,6.1688,225.95,225.9,6.63865311]
[1734145384432,6.1688,225.95,225.89,6.63865311]
[1734145387535,6.1688,225.95,225.88,6.63865311]
[1734145393456,6.1688,225.95,225.89,6.63865311]
[1734145394260,6.1688,225.95,225.88,6.63865311]
[1734145396648,0.2091686,226.01,225.88,6.63865311]
[1734145399757,6.2029,226.0,225.88,6.63865311]
[1734145402071,6.6374,225.99,225.83,0.6639339]
[1734145402244,6.6374,225.99,225.83,6.63865311]
[1734145402962,20.0,225.96,225.83,6.63865311]
[1734145403468,20.0,225.96,225.82,6.63865311]
[1734145403645,20.0,225.96,225.83,26.63865311]
[1734145404256,20.0,225.96,225.83,6.63865311]
[1734145405450,20.0,225.96,225.85,6.63865311]
[1734145405845,20.0,225.96,225.83,6.63865311]
[1734145407052,6.5431,225.95,225.83,6.63865311]
[1734145407553,6.5431,225.95,225.83,20.0]
[1734145407757,6.5431,225.95,225.82,6.63865311]
[1734145409971,6.5431,225.95,225.83,26.63865311]
[1734145413673,6.5431,225.95,225.8,7.7501]
[1734145413861,6.5431,225.95,225.82,6.63865311]
[1734145416784,6.5431,225.95,225.83,6.63865311]
[1734145417977,6.5431,225.95,225.85,6.63865311]
[1734145418479,6.5431,225.95,225.8,7.7501]
[1734145418480,6.5431,225.95,225.86,6.63865311]
[1734145419475,6.5431,225.95,225.85,6.63865311]
[1734145421770,13.0338,226.0,225.86,6.63865311]
[1734145422064,6.3967,226.0,225.9,6.63865311]
[1734145422482,6.3967,226.0,225.89,6.63865311]
[1734145423895,6.3967,226.0,225.91,6.63865311]
[1734145425173,6.3967,226.0,225.9,6.63865311]
[1734145426310,6.3967,226.0,225.91,6.63865311]
[1734145426972,6.3967,226.0,225.9,6.63865311]
[1734145428781,6.3967,226.0,225.93,0.23835116]
[1734145434098,20.0,226.02,225.93,0.23835116]
[1734145448798,13.0971,226.05,225.93,0.23835116]
[1734145449111,13.0971,226.05,225.93,7.54078026]
[1734145449505,13.0971,226.05,225.93,0.90212715]
[1734145449692,13.0971,226.05,225.93,0.23835116]
[1734145450105,13.0971,226.05,225.93,6.87700427]
[1734145450292,13.0971,226.05,225.93,0.23835116]
[1734145454099,13.0971,226.05,225.93,6.87700427]
[1734145454713,13.0971,226.05,225.93,0.23835116]
[1734145459387,13.0971,226.05,226.02,0.23835116]
[1734145466511,20.0,226.03,226.02,0.23835116]
[1734145469505,43.776884,226.03,226.02,5.116e-05]
[1734145472033,20.0,226.03,226.02,5.116e-05]
[1734145474214,20.0,226.03,225.9,6.63865311]
[1734145474215,20.0,226.02,225.9,6.63865311]
[1734145475601,20.0,226.02,225.87,21.6655]
[1734145475602,13.0971,226.05,225.92,6.63865311]
[1734145476123,6.6357,226.05,225.94,8.30415311]
[1734145476338,5.1357,226.05,225.95,6.63865311]
[1734145478527,6.6348,226.08,225.96,6.63865311]
[1734145478722,6.6348,226.08,225.98,6.63865311]
[1734145480462,6.6348,226.08,225.97,6.63865311]
[1734145483250,6.6348,226.08,225.98,6.63865311]
[1734145484943,6.6348,226.08,225.94,2.32912775]
[1734145484944,6.6348,226.08,225.99,6.63865311]
[1734145485261,6.6348,226.08,225.98,6.63865311]
[1734145488140,6.6348,226.08,225.99,6.63865311]
[1734145489363,6.6348,226.08,225.96,0.66356082]
[1734145489364,6.6348,226.08,225.98,6.63865311]
[1734145490659,20.537251,226.09,226.01,6.63865311]
[1734145491153,0.537251,226.09,226.01,6.63865311]
[1734145491349,0.537251,226.09,226.03,6.63865311]
[1734145491545,0.537251,226.09,226.04,6.63865311]
[1734145491731,0.537251,226.09,226.06,6.63865311]
[1734145492235,0.537251,226.09,226.05,6.63865311]
[1734145495340,0.537251,226.09,226.06,6.63865311]
[1734145495837,0.537251,226.09,226.08,6.63865311]
[1734145497454,0.537251,226.09,226.08,7.30189761]
[1734145497752,0.537251,226.09,226.08,31.07878161]
[1734145500157,0.537251,226.09,226.07,20.0]
[1734145500327,0.537251,226.09,226.08,6.63865311]
[1734145500652,0.537251,226.09,226.08,30.41553711]
[1734145505827,0.537251,226.09,226.07,20.66329525]
[1734145506024,0.537251,226.09,226.07,20.0]
[1734145506226,0.537251,226.09,226.08,6.63865311]
[1734145509053,0.537251,226.09,226.07,20.0]
[1734145509353,0.537251,226.09,226.08,6.63865311]
[1734145514645,0.537251,226.09,226.06,1.6268]
[1734145514840,0.537251,226.09,226.06,8.26545311]
[1734145515154,0.537251,226.09,226.06,1.6268]
[1734145515334,0.537251,226.09,226.08,6.63865311]
[1734145516750,0.537251,226.09,226.06,1.6268]
[1734145516949,0.537251,226.09,226.08,6.63865311]
[1734145518344,0.537251,226.09,226.06,1.6268]
[1734145518650,0.537251,226.09,226.08,6.63865311]
[1734145520174,0.537251,226.09,226.07,0.6633346]
[1734145520461,0.537251,226.09,226.07,6.63865311]
[1734145520635,0.537251,226.09,226.08,6.63865311]
[1734145523744,0.537251,226.09,226.07,6.63865311]
[1734145526348,0.537251,226.09,226.03,5.11936857]
[1734145526542,0.537251,226.09,226.03,6.63865311]
[1734145527954,0.537251,226.09,226.04,6.63865311]
[1734145529863,0.537251,226.09,226.03,20.0]
[1734145530075,0.537251,226.09,226.02,6.63865311]
[1734145530761,0.537251,226.09,226.03,6.63865311]
[1734145535060,0.537251,226.09,225.99,2.21504926]
[1734145535354,0.537251,226.09,226.01,6.63865311]
[1734145535557,0.537251,226.09,226.03,6.63865311]
[1734145537785,0.537251,226.09,226.04,6.63865311]
[1734145539275,0.537251,226.09,226.05,6.63865311]
[1734145539473,0.537251,226.09,226.08,6.63865311]
[1734145543701,0.537251,226.09,226.08,7.30193758]
[1734145544589,0.537251,226.09,226.08,6.63865311]
[1734145549383,0.537251,226.09,226.08,30.41553711]
[1734145549680,0.537251,226.09,226.08,32.00973711]
[1734145550978,0.537251,226.09,226.08,32.17973711]
[1734145552360,0.537251,226.09,226.08,32.00973711]
[1734145554585,0.537251,226.09,226.08,25.371084]
[1734145554881,0.537251,226.09,226.08,8.23285311]
[1734145560984,0.537251,226.09,226.05,12.05156904]
[1734145562379,0.537251,226.09,226.02,1.5942]
[1734145562703,0.537251,226.09,226.03,6.63865311]
[1734145563982,0.537251,226.09,226.04,6.63865311]
[1734145567508,0.537251,226.09,226.03,20.0]
[1734145567675,0.537251,226.09,226.04,6.63865311]
[1734145570688,0.537251,226.09,226.03,6.63865311]
[1734145573313,0.537251,226.09,226.02,21.5942]
[1734145573526,0.537251,226.09,226.03,6.63865311]
[1734145575103,0.537251,226.09,226.02,21.5942]
[1734145575304,0.537251,226.09,226.03,6.63865311]
[1734145575497,0.537251,226.09,226.04,6.63865311]
[1734145576604,0.537251,226.09,226.05,6.63865311]
[1734145577715,0.537251,226.09,226.04,6.63865311]
[1734145579010,0.537251,226.09,226.05,6.63865311]
[1734145579316,0.537251,226.09,226.07,6.63865311]
[1734145581599,0.537251,226.09,226.06,6.63865311]
[1734145582898,0.537251,226.09,226.08,6.63865311]
[1734145586222,0.537251,226.09,226.08,30.41553711]
[1734145591104,0.537251,226.09,226.08,35.82843238]
[1734145591305,6.6395,226.26,226.11,30.0]
[1734145591508,6.6395,226.26,226.18,6.63865311]
[1734145592618,6.6285,226.3,226.21,6.63865311]
[1734145592823,6.6285,226.3,226.22,6.63865311]
[1734145593335,7.176751,226.32,226.22,6.63865311]
[1734145595131,6.628,226.31,226.2,6.63865311]
[1734145595331,6.628,226.31,226.19,6.63865311]
[1734145595837,6.628,226.31,226.16,0.66296566]
[1734145595838,6.628,226.31,226.2,6.63865311]
[1734145596625,6.628,226.31,226.21,6.63865311]
[1734145602649,6.628,226.31,226.18,0.6629517]
[1734145602650,6.628,226.31,226.2,6.63865311]
[1734145603345,7.176751,226.32,226.23,6.63865311]
[1734145603550,7.176751,226.32,226.24,6.63865311]
[1734145603765,7.176751,226.32,226.23,6.63865311]
[1734145603956,7.176751,226.32,226.22,6.63865311]
[1734145604159,7.176751,226.32,226.21,6.63865311]
[1734145606367,6.628,226.31,226.19,5.41289527]
[1734145608286,6.628,226.31,226.17,6.63865311]
[1734145608590,6.628,226.31,226.18,6.63865311]
[1734145611761,6.628,226.31,226.17,6.63865311]
[1734145613145,6.6292,226.27,226.14,5.41289527]
[1734145613466,6.6292,226.27,226.15,6.80865311]
[1734145613635,6.6292,226.27,226.14,5.41289527]
[1734145613636,6.6292,226.27,226.16,6.63865311]
[1734145614967,20.0,226.28,226.15,6.63865311]
[1734145615147,20.0,226.28,226.16,6.63865311]
[1734145616051,26.6292,226.28,226.15,6.63865311]
[1734145616251,26.6292,226.28,226.16,6.63865311]
[1734145617739,26.6292,226.28,226.15,6.63865311]
[1734145621365,6.2567,226.27,226.14,5.41289527]
[1734145621567,6.2567,226.27,226.14,12.05154838]
[1734145622075,6.2567,226.27,226.17,6.63865311]
[1734145622451,6.2567,226.27,226.16,6.63865311]
[1734145623360,6.2567,226.27,226.17,6.63865311]
[1734145623663,6.2567,226.27,226.18,6.63865311]
[1734145623966,6.2567,226.27,226.19,6.63865311]
[1734145624163,26.6292,226.28,226.19,6.63865311]
[1734145624855,26.6292,226.28,226.18,6.63865311]
[1734145626968,26.6292,226.28,226.19,6.63865311]
[1734145628770,6.628,226.31,226.19,6.63865311]
[1734145629472,6.628,226.31,226.22,6.63865311]
[1734145629675,6.793951,226.32,226.25,6.63865311]
[1734145630182,0.537251,226.32,226.26,6.63865311]
[1734145634373,0.537251,226.32,226.27,6.63865311]
[1734145634676,0.537251,226.32,226.28,6.63865311]
[1734145635067,5.419951,226.37,226.28,6.63865311]
[1734145635267,5.419951,226.37,226.29,6.63865311]
[1734145636862,5.419951,226.37,226.28,6.63865311]
[1734145637959,13.2488,226.44,226.29,7.30137397]
[1734145638158,20.0,226.39,226.29,7.30137397]
[1734145639468,20.0,226.39,226.28,6.63865311]
[1734145639673,20.0,226.38,226.27,6.63865311]
[1734145639866,20.0,226.38,226.28,30.41553711]
[1734145640981,20.0,226.38,226.27,6.63865311]
[1734145641678,20.0,226.38,226.27,7.30138431]
[1734145641862,20.0,226.38,226.28,6.63865311]
[1734145645862,20.0,226.38,226.27,7.3013537]
[1734145646269,20.0,226.38,226.26,6.63865311]
[1734145647076,20.0,226.38,226.25,23.776884]
[1734145648162,20.0,226.38,226.25,30.41553711]
[1734145648383,6.2607,226.36,226.22,20.0]
[1734145648586,6.2607,226.36,226.23,0.17]
[1734145649169,6.2607,226.36,226.22,7.30154694]
[1734145649671,6.6269,226.35,226.22,7.30154694]
[1734145649877,6.6269,226.35,226.22,6.63865311]
[1734145652089,6.6269,226.35,226.2,0.66289665]
[1734145652090,6.6269,226.35,226.23,6.63865311]
[1734145652769,6.6269,226.35,226.22,7.30152412]
[1734145657871,6.6269,226.35,226.24,6.63865311]
[1734145658072,6.6269,226.35,226.23,6.63865311]
[1734145661613,6.6269,226.35,226.22,13.21636383]
[1734145666284,6.6269,226.35,226.24,6.63865311]
[1734145666587,6.6269,226.35,226.24,7.30145039]
[1734145677898,6.6269,226.35,226.22,13.21632164]
[1734145685203,6.6269,226.35,226.22,6.57766853]
[1734145685601,6.6269,226.35,226.22,13.21632164]
[1734145686304,6.6269,226.35,226.22,5.91483971]
[1734145686503,20.0,226.32,226.2,6.63865311]
[1734145687429,20.0,226.32,226.21,6.63865311]
[1734145688116,20.0,226.32,226.23,6.63865311]
[1734145688602,6.6269,226.35,226.25,6.63865311]
[1734145690405,6.6269,226.35,226.24,7.3015214]
[1734145691126,6.6269,226.35,226.22,0.66282684]
[1734145691325,6.6269,226.35,226.23,6.63865311]
[1734145692229,6.6269,226.35,226.22,0.66282684]
[1734145692423,6.6269,226.35,226.24,6.63865311]
[1734145693328,6.6269,226.35,226.23,6.63865311]
[1734145693628,6.6269,226.35,226.23,7.63865311]
[1734145694625,6.6269,226.35,226.23,1.0]
[1734145696531,6.6269,226.35,226.23,7.63865311]
[1734145696927,6.6269,226.35,226.24,6.63865311]
[1734145697715,6.6269,226.35,226.23,7.63865311]
[1734145698116,5.6269,226.35,226.23,1.0]
[1734145699411,5.6269,226.35,226.23,7.63865311]
[1734145704631,5.6269,226.35,226.24,6.63865311]
[1734145704819,5.6269,226.35,226.24,7.30150228]
[1734145707857,5.6269,226.35,226.23,1.66282273]
[1734145708421,5.6269,226.35,226.23,8.30147584]
[1734145710338,5.6269,226.35,226.23,7.63865311]
[1734145712137,5.6269,226.35,226.23,1.0]
[1734145712731,5.6269,226.35,226.23,7.63865311]
[1734145713940,5.6269,226.35,226.23,1.0]
[1734145715739,5.6269,226.35,226.23,7.63865311]
[1734145716148,5.6269,226.35,226.25,6.63865311]
[1734145717018,5.6269,226.35,226.24,7.30151176]
[1734145718338,5.6269,226.35,226.24,6.63865311]
[1734145719646,5.6269,226.35,226.23,13.55349282]
[1734145723442,5.6269,226.35,226.23,1.0]
[1734145724539,5.6269,226.35,226.23,7.63865311]
[1734145725537,5.6269,226.35,226.23,1.0]
[1734145725848,5.6269,226.35,226.23,7.63865311]
[1734145726335,5.6269,226.35,226.23,8.30151346]
[1734145727130,5.6269,226.35,226.24,6.63865311]
[1734145729939,5.6269,226.35,226.23,8.30151346]
[1734145735146,5.6269,226.35,226.23,1.66286035]
[1734145735333,5.6269,226.35,226.23,1.0]
[1734145747767,5.6269,226.35,226.22,6.63865311]
[1734145748166,5.6269,226.35,226.23,6.63865311]
[1734145748749,5.6269,226.35,226.24,7.30150861]
[1734145756865,6.2607,226.36,226.26,6.63865311]
[1734145757052,6.2607,226.36,226.26,7.30139742]
[1734145757758,6.2607,226.36,226.27,6.63865311]
[1734145757959,6.2607,226.36,226.27,7.30137936]
[1734145761983,6.2607,226.36,226.27,0.66272625]
[1734145762150,6.2607,226.36,226.21,5.61409562]
[1734145762151,12.8873,226.36,226.23,23.776884]
[1734145762353,12.8873,226.36,226.22,0.66272968]
[1734145762554,12.8873,226.36,226.23,6.63865311]
[1734145767067,12.8873,226.36,226.23,23.776884]
[1734145767473,12.8873,226.36,226.23,30.41553711]
[1734145768279,12.8873,226.36,226.23,23.776884]
[1734145770076,12.8873,226.36,226.22,7.30138279]
[1734145771975,12.8873,226.36,226.22,6.63865311]
[1734145773576,12.8873,226.36,226.21,5.61409562]
[1734145773577,26.6277,226.33,226.21,5.61409562]
[1734145774484,26.6277,226.33,226.21,12.25274873]
[1734145775090,26.6277,226.33,226.22,6.63865311]
[1734145780859,26.6277,226.33,226.21,5.61409562]
[1734145781583,26.6277,226.33,226.21,12.25274873]
[1734145783381,26.6277,226.33,226.21,5.61409562]
[1734145783887,26.6277,226.33,226.21,12.25274873]
[1734145787686,26.6277,226.33,226.21,5.61409562]
[1734145789784,26.6277,226.33,226.21,12.25274873]
[1734145791871,26.6277,226.33,226.22,6.63865311]
[1734145792887,26.6277,226.33,226.21,12.25274873]
[1734145794399,26.6277,226.33,226.21,5.61409562]
[1734145796079,26.6277,226.33,226.2,6.63865311]
[1734145797189,26.6277,226.33,226.21,6.63865311]
[1734145798999,26.6277,226.33,226.22,6.63865311]
[1734145799182,26.6277,226.33,226.23,6.63865311]
[1734145800701,26.6277,226.33,226.22,6.63865311]
[1734145800901,26.6277,226.33,226.23,6.63865311]
[1734145802999,20.0,226.33,226.26,6.63865311]
[1734145803187,6.2607,226.36,226.27,6.63865311]
[1734145803389,0.23798578,226.39,226.28,6.63865311]
[1734145804802,20.0,226.38,226.28,6.63865311]
[1734145808510,20.0,226.38,226.27,30.41553711]
[1734145808698,20.0,226.38,226.26,0.66277929]
[1734145808903,20.0,226.38,226.27,30.41553711]
[1734145813118,20.0,226.38,226.25,6.63865311]
[1734145813119,26.6261,226.38,226.25,6.63865311]
[1734145814306,26.6261,226.38,226.26,20.0]
[1734145814518,26.6261,226.38,226.25,30.41553711]
[1734145815296,26.6261,226.38,226.26,6.63865311]
[1734145816299,26.6261,226.38,226.25,23.776884]
[1734145816516,26.6261,226.38,226.26,6.63865311]
[1734145818810,26.6261,226.38,226.27,6.63865311]
[1734145819006,20.23798578,226.39,226.28,6.63865311]
[1734145819725,20.23798578,226.39,226.3,6.63865311]
[1734145819917,20.23798578,226.39,226.27,23.776884]
[1734145820118,20.23798578,226.39,226.29,23.776884]
[1734145827831,20.23798578,226.39,226.29,30.41553711]
[1734145828218,0.23798578,226.39,226.29,30.41553711]
[1734145835827,0.23798578,226.39,226.3,6.63865311]
[1734145837122,0.23798578,226.39,226.3,12.25274873]
[1734145837322,0.23798578,226.39,226.31,6.63865311]
[1734145838544,0.23798578,226.39,226.32,6.63865311]
[1734145843533,0.23798578,226.39,226.32,23.776884]
[1734145854661,0.23798578,226.39,226.31,5.61409562]
[1734145856657,0.23798578,226.39,226.29,23.776884]
[1734145860545,0.23798578,226.39,226.28,23.776884]
[1734145860745,20.23798578,226.39,226.26,7.22979562]
[1734145861169,20.23798578,226.39,226.26,5.61409562]
[1734145861469,20.0,226.37,226.26,5.61409562]
[1734145863742,20.0,226.37,226.26,12.25274873]
[1734145865372,0.23798578,226.39,226.31,6.63865311]
[1734145865669,0.23798578,226.39,226.32,7.3012413]
[1734145865848,0.23798578,226.39,226.27,37.42040728]
[1734145866049,0.23798578,226.39,226.28,6.63865311]
[1734145873365,20.0,226.38,226.27,11.32004283]
[1734145873557,20.0,226.38,226.26,23.776884]
[1734145873760,20.0,226.38,226.26,30.41553711]
[1734145875074,20.0,226.38,226.27,7.30141098]
[1734145875762,20.0,226.38,226.27,0.66275787]
[1734145876359,20.0,226.38,226.27,7.30141098]
[1734145876753,20.0,226.38,226.29,6.63865311]
[1734145876954,0.23798578,226.39,226.29,7.30131409]
[1734145878465,0.23798578,226.39,226.3,6.63865311]
[1734145878660,0.23798578,226.39,226.31,31.078123]
[1734145881381,0.23798578,226.39,226.33,6.63865311]
[1734145881680,0.23798578,226.39,226.34,6.63865311]
[1734145883772,0.23798578,226.39,226.31,24.43946989]
[1734145883965,0.23798578,226.39,226.33,6.63865311]
[1734145885995,20.23798578,226.39,226.31,0.66258589]
[1734145886190,20.23798578,226.39,226.24,7.30140851]
[1734145886682,20.23798578,226.39,226.25,6.63865311]
[1734145887281,6.626,226.38,226.25,6.63865311]
[1734145890481,6.626,226.38,226.24,23.776884]
[1734145890795,6.626,226.38,226.25,7.30144991]
[1734145895688,6.626,226.38,226.25,0.6627968]
[1734145895887,6.626,226.38,226.25,7.30144991]
[1734145896599,6.626,226.38,226.25,0.6627968]
[1734145897003,6.626,226.38,226.26,6.63865311]
[1734145898699,6.626,226.38,226.27,0.66273776]
[1734145900002,6.626,226.38,226.26,6.63865311]
[1734145905489,6.626,226.38,226.26,23.776884]
[1734145906289,6.626,226.38,226.27,0.66276041]
[1734145906695,6.626,226.38,226.28,23.776884]
[1734145907888,6.626,226.38,226.26,6.63865311]
[1734145911311,6.626,226.38,226.25,30.41553711]
[1734145911911,6.626,226.38,226.25,23.776884]
[1734145912099,6.3309,226.37,226.25,23.776884]
[1734145914592,6.6266,226.36,226.22,20.0]
[1734145915927,20.0,226.33,226.19,6.36873093]
[1734145916093,20.0,226.33,226.2,6.63865311]
[1734145916413,26.6276,226.33,226.2,6.63865311]
[1734145921215,26.6276,226.33,226.21,6.63865311]
[1734145925116,26.6276,226.33,226.21,7.30157808]
[1734145925417,20.0,226.32,226.22,30.41553711]
[1734145926020,20.0,226.32,226.22,31.07840294]
[1734145927315,20.0,226.32,226.22,23.776884]
[1734145928601,20.0,226.32,226.2,7.30152939]
[1734145932031,26.331,226.32,226.2,0.66287628]
[1734145932201,26.331,226.32,226.2,7.30152939]
[1734145936920,25.831,226.32,226.2,7.30152939]
[1734145937604,6.331,226.32,226.21,6.63865311]
[1734145938821,6.331,226.32,226.2,7.30152939]
[1734145940629,6.331,226.32,226.2,0.66287628]
[1734145940815,6.331,226.32,226.2,23.776884]
[1734145944036,6.331,226.32,226.2,6.63865311]
[1734145946731,6.331,226.32,226.2,7.30159117]
[1734145948517,6.331,226.32,226.21,6.63865311]
[1734145948718,6.331,226.32,226.22,7.30149945]
[1734145949036,6.331,226.32,226.23,6.63865311]
[1734145949811,6.331,226.32,226.22,7.30150625]
[1734145951022,6.331,226.32,226.22,23.776884]
[1734145951346,6.331,226.32,226.19,30.41553711]
[1734145952928,6.331,226.32,226.19,31.0785068]
[1734145953123,6.628,226.31,226.17,5.1260034]
[1734145953328,6.628,226.31,226.15,0.66296607]
[1734145953329,20.0,226.28,226.15,7.30161918]
[1734145954245,6.629,226.28,226.15,7.30161918]
[1734145957833,6.629,226.28,226.17,6.63865311]
[1734145958036,6.629,226.28,226.18,0.66299149]
[1734145959725,6.629,226.28,226.16,31.07853541]
[1734145961644,20.0,226.29,226.18,6.63865311]
[1734145961829,6.331,226.32,226.22,6.63865311]
[1734145962037,6.331,226.32,226.23,0.66281751]
[1734145962638,6.331,226.32,226.21,0.12549]
[1734145963855,6.331,226.32,226.22,23.776884]
[1734145967563,6.331,226.32,226.23,0.66284676]
[1734145967735,6.331,226.32,226.24,23.776884]
[1734145968752,6.091,226.32,226.24,23.776884]
[1734145972046,6.091,226.32,226.22,30.41553711]
[1734145972252,6.091,226.32,226.24,23.776884]
[1734145975047,6.091,226.32,226.23,23.776884]
[1734145990594,6.091,226.32,226.22,0.66285343]
[1734145993416,6.091,226.32,226.23,30.41553711]
[1734145993602,6.091,226.32,226.24,7.30145204]
[1734145996632,6.091,226.32,226.24,0.66279893]
[1734145997928,6.091,226.32,226.22,5.1260034]
[1734145999635,6.091,226.32,226.22,12.42754776]
[1734146000129,6.091,226.32,226.23,30.41553711]
[1734146000430,6.091,226.32,226.24,0.66277452]
[1734146001028,6.6264,226.37,226.24,0.66277452]
[1734146002939,6.6264,226.37,226.23,28.9028874]
[1734146003339,6.6264,226.37,226.23,23.776884]
[1734146005326,20.0,226.34,226.22,0.66280923]
[1734146010634,2.69664243,226.39,226.18,10.83195061]
[1734146010635,13.2206,226.33,226.18,10.83195061]
[1734146010837,20.0,226.3,226.18,5.1260034]
[1734146014629,20.0,226.3,226.17,0.66289204]
[1734146014630,26.6284,226.3,226.14,0.66300334]
[1734146014835,26.6284,226.3,226.15,23.902374]
[1734146015352,26.6284,226.3,226.15,30.54102711]
[1734146015537,26.6284,226.3,226.16,0.66306047]
[1734146021154,6.5932,226.29,226.16,0.66306047]
[1734146023644,6.5932,226.29,226.16,7.30171358]
[1734146024454,6.5932,226.29,226.16,0.66306047]
[1734146024650,6.5932,226.29,226.15,23.902374]
[1734146025556,6.5932,226.29,226.15,23.776884]
[1734146025764,20.0,226.25,226.13,5.1260034]
[1734146025952,6.1342,226.24,226.13,5.1260034]
[1734146026978,6.1342,226.24,226.11,23.902374]
[1734146027348,6.1342,226.24,226.09,6.63865311]
[1734146027762,6.6304,226.23,226.09,6.63865311]
[1734146028869,20.0,226.2,226.09,23.776884]
[1734146029056,20.0,226.2,226.08,12.42785781]
[1734146029561,20.0,226.2,226.08,5.7892047]
[1734146030173,20.0,226.2,226.08,5.1260034]
[1734146030782,6.6313,226.2,226.08,5.1260034]
[1734146031287,6.4378,226.19,226.08,5.1260034]
[1734146033978,6.6318,226.18,226.03,0.66335337]
[1734146034286,6.6318,226.18,226.04,30.41553711]
[1734146035377,6.6318,226.18,226.04,6.63865311]
[1734146036066,6.6318,226.18,226.02,10.61528394]
[1734146036067,20.0,226.15,226.02,10.61528394]
[1734146036294,20.0,226.15,226.02,11.76465651]
[1734146037100,6.6328,226.15,226.02,11.76465651]
[1734146038190,6.6328,226.15,226.02,5.1260034]
[1734146038393,6.4378,226.14,226.02,5.1260034]
[1734146040780,6.6333,226.13,226.02,11.76465651]
[1734146040981,6.6333,226.13,226.02,5.1260034]
[1734146042498,6.6333,226.13,226.01,6.63865311]
[1734146048217,6.6333,226.13,226.0,20.0]
[1734146049978,6.6333,226.13,225.98,7.30219397]
[1734146050185,6.4168,226.09,225.97,5.1260034]
[1734146050383,6.4168,226.09,225.95,6.63865311]
[1734146050993,6.4168,226.09,225.97,6.63865311]
[1734146051190,6.4168,226.09,226.0,6.76414311]
[1734146051505,20.0,226.13,226.04,6.63865311]
[1734146052408,20.0,226.13,226.03,6.63865311]
[1734146052604,20.0,226.13,226.02,23.776884]
[1734146056432,20.0,226.13,226.0,23.776884]
[1734146057639,20.0,226.13,225.99,0.66350214]
[1734146057640,6.1224,226.1,225.99,0.66350214]
[1734146057818,20.0,226.07,225.9,8.9405055]
[1734146058335,20.0,226.05,225.9,8.9405055]
[1734146058832,26.6357,226.05,225.91,6.63865311]
[1734146059015,26.6357,226.05,225.92,24.44061733]
[1734146059615,6.1224,226.04,225.92,24.44061733]
[1734146063249,6.1224,226.04,225.92,31.07927044]
[1734146064340,6.1224,226.04,225.9,6.63865311]
[1734146064341,6.6362,226.03,225.9,6.63865311]
[1734146064531,6.6362,226.03,225.91,0.66380068]
[1734146065642,6.6362,226.03,225.9,0.66378966]
[1734146068047,6.6362,226.03,225.92,0.17]
[1734146068553,20.0,226.0,225.92,0.17]
[1734146069734,6.6374,225.99,225.92,0.17]
[1734146071551,6.6374,225.99,225.88,0.17]
[1734146073952,6.6374,225.99,225.87,0.66390405]
[1734146077159,6.6374,225.99,225.87,1.66390405]
[1734146081474,20.0,225.96,225.87,1.66390405]
[1734146081676,6.638,225.97,225.87,1.0]
[1734146087774,5.638,225.97,225.87,1.0]
[1734146089717,6.262,225.98,225.88,24.44081682]
[1734146089882,6.0998,226.03,225.9,30.41553711]
[1734146090185,6.0998,226.03,225.91,7.30239643]
[1734146090386,6.0998,226.03,225.91,0.66374332]
[1734146091597,20.0,226.0,225.91,0.66374332]
[1734146091905,20.0,226.0,225.91,0.83374332]
[1734146093288,20.0,226.0,225.92,0.17]
[1734146094116,20.0,226.0,225.91,0.66374332]
[1734146097208,6.0998,226.03,225.91,0.66374332]
[1734146097901,6.6365,226.02,225.91,0.66374332]
[1734146098625,6.6365,226.02,225.92,0.17]
[1734146100908,6.6362,226.07,225.93,0.78925293]
[1734146101110,55.1725945,226.12,225.96,23.902374]
[1734146101309,70.22475466,226.12,225.97,0.66358083]
[1734146102141,6.6345,226.1,225.97,0.66358083]
[1734146102730,20.0,226.07,225.96,23.902374]